[Event "MČR v rapid šachu družstev 2019"]
[Site "Teplice, Czech Republic"]
[Date "2019.09.15"]
[Round "2.2"]
[White "Ruzicka, Ales"]
[Black "Kociscak, Jiri"]
[Result "0-1"]
[TimeControl "15 min. + 5s"]
[WhiteElo "2119"]
[BlackElo "2410"]

1. e4 {[%clk 00:15:07]} {[%emt 00:00:02]} e5 {[%clk 00:15:07]} {[%emt
00:00:03]} 2. Nf3 {[%clk 00:15:10]} {[%emt 00:00:02]} Nc6 {[%clk 00:15:10]}
{[%emt 00:00:02]} 3. Bb5 {[%clk 00:15:12]} {[%emt 00:00:04]} Nf6 {[%clk
00:15:12]} {[%emt 00:00:02]} 4. O-O {[%clk 00:15:08]} {[%emt 00:00:09]} Nxe4
{[%clk 00:15:14]} {[%emt 00:00:03]} 5. d4 {[%clk 00:15:02]} {[%emt 00:00:11]}
Nd6 {[%clk 00:15:16]} {[%emt 00:00:03]} 6. Bxc6 {[%clk 00:14:59]} {[%emt
00:00:08]} dxc6 {[%clk 00:15:19]} {[%emt 00:00:02]} 7. dxe5 {[%clk 00:14:52]}
{[%emt 00:00:12]} Nf5 {[%clk 00:15:22]} {[%emt 00:00:02]} 8. Qxd8+ {[%clk
00:14:55]} {[%emt 00:00:02]} Kxd8 {[%clk 00:15:25]} {[%emt 00:00:01]} 9. Rd1+
{[%clk 00:14:39]} {[%emt 00:00:21]} Ke8 {[%clk 00:15:29]} {[%emt 00:00:01]} 10.
Nc3 {[%clk 00:14:20]} {[%emt 00:00:23]} h6 {[%clk 00:15:27]} {[%emt 00:00:07]}
11. h3 {[%clk 00:13:32]} {[%emt 00:00:53]} b6 {[%clk 00:14:55]} {[%emt
00:00:37]} 12. b3 {[%clk 00:13:08]} {[%emt 00:00:29]} Bb7 {[%clk 00:14:57]}
{[%emt 00:00:03]} 13. Bb2 {[%clk 00:13:02]} {[%emt 00:00:10]} a5 {[%clk
00:14:50]} {[%emt 00:00:12]} 14. Rd2 {[%clk 00:12:11]} {[%emt 00:00:55]} Rd8
{[%clk 00:14:53]} {[%emt 00:00:03]} 15. Rad1 {[%clk 00:11:54]} {[%emt
00:00:22]} Rxd2 {[%clk 00:14:53]} {[%emt 00:00:05]} 16. Rxd2 {[%clk 00:11:15]}
{[%emt 00:00:44]} Be7 {[%clk 00:14:55]} {[%emt 00:00:04]} 17. Ne2 {[%clk
00:10:25]} {[%emt 00:00:55]} c5 {[%clk 00:14:50]} {[%emt 00:00:09]} 18. Ne1
{[%clk 00:09:48]} {[%emt 00:00:42]} Bg5 {[%clk 00:13:34]} {[%emt 00:01:21]} 19.
Rd1 {[%clk 00:08:51]} {[%emt 00:01:02]} h5 {[%clk 00:13:10]} {[%emt 00:00:30]}
20. c4 {[%clk 00:08:40]} {[%emt 00:00:16]} Ke7 {[%clk 00:09:27]} {[%emt
00:03:48]} 21. a4 {[%clk 00:07:07]} {[%emt 00:01:37]} Rd8 {[%clk 00:09:21]}
{[%emt 00:00:11]} 22. Rxd8 {[%clk 00:07:01]} {[%emt 00:00:11]} Kxd8 {[%clk
00:09:25]} {[%emt 00:00:01]} 23. Nc2 {[%clk 00:05:33]} {[%emt 00:01:33]} Be4
{[%clk 00:08:39]} {[%emt 00:00:51]} 24. Ne1 {[%clk 00:05:04]} {[%emt 00:00:33]}
Bd2 {[%clk 00:08:11]} {[%emt 00:00:33]} 25. Nc3 {[%clk 00:03:51]} {[%emt
00:01:19]} Bxc3 {[%clk 00:07:25]} {[%emt 00:00:51]} 26. Bxc3 {[%clk 00:03:54]}
{[%emt 00:00:02]} Nd4 {[%clk 00:07:29]} {[%emt 00:00:02]} 27. Bxd4 {[%clk
00:03:25]} {[%emt 00:00:34]} cxd4 {[%clk 00:07:32]} {[%emt 00:00:02]} 28. Kf1
{[%clk 00:03:01]} {[%emt 00:00:29]} Ke7 {[%clk 00:04:57]} {[%emt 00:02:40]} 29.
Ke2 {[%clk 00:02:54]} {[%emt 00:00:12]} Ke6 {[%clk 00:04:59]} {[%emt 00:00:04]}
30. f3 {[%clk 00:02:23]} {[%emt 00:00:36]} Bb1 {[%clk 00:05:01]} {[%emt
00:00:02]} 31. f4 {[%clk 00:02:15]} {[%emt 00:00:13]} Ba2 {[%clk 00:04:40]}
{[%emt 00:00:24]} 32. Kd3 {[%clk 00:02:01]} {[%emt 00:00:22]} Bxb3 {[%clk
00:04:41]} {[%emt 00:00:04]} 33. Kxd4 {[%clk 00:02:00]} {[%emt 00:00:05]} Bxa4
{[%clk 00:04:30]} {[%emt 00:00:16]} 34. g4 {[%clk 00:02:02]} {[%emt 00:00:04]}
hxg4 {[%clk 00:03:45]} {[%emt 00:00:49]} 35. hxg4 {[%clk 00:02:05]} {[%emt
00:00:01]} c5+ {[%clk 00:03:17]} {[%emt 00:00:33]} 36. Ke4 {[%clk 00:02:04]}
{[%emt 00:00:06]} Bc6+ {[%clk 00:03:19]} {[%emt 00:00:02]} 37. Kd3 {[%clk
00:02:03]} {[%emt 00:00:07]} g5 {[%clk 00:03:21]} {[%emt 00:00:04]} 38. Ke3
{[%clk 00:01:54]} {[%emt 00:00:14]} a4 {[%clk 00:03:05]} {[%emt 00:00:21]} 39.
Nc2 {[%clk 00:01:58]} {[%emt 00:00:01]} b5 {[%clk 00:02:32]} {[%emt 00:00:37]}
40. cxb5 {[%clk 00:01:56]} {[%emt 00:00:07]} Bxb5 {[%clk 00:02:36]} {[%emt
00:00:02]} 41. Na3 {[%clk 00:01:55]} {[%emt 00:00:06]} Ba6 {[%clk 00:02:36]}
{[%emt 00:00:04]} 42. Ke4 {[%clk 00:01:55]} {[%emt 00:00:06]} Bb7+ {[%clk
00:02:40]} {[%emt 00:00:01]} 43. Ke3 {[%clk 00:01:59]} Kd5 {[%clk 00:02:41]}
{[%emt 00:00:05]} 44. Nb5 {[%clk 00:01:51]} {[%emt 00:00:12]} gxf4+ {[%clk
00:02:02]} {[%emt 00:00:44]} 45. Kxf4 {[%clk 00:01:51]} {[%emt 00:00:05]} Bc6
{[%clk 00:02:06]} {[%emt 00:00:01]} 46. Na3 {[%clk 00:01:46]} {[%emt 00:00:10]}
Bd7 {[%clk 00:02:01]} {[%emt 00:00:11]} 47. g5 {[%clk 00:01:46]} {[%emt
00:00:04]} Kd4 {[%clk 00:01:46]} {[%emt 00:00:19]} 0-1

[Event "MČR v rapid šachu družstev 2019"]
[Site "Teplice, Czech Republic"]
[Date "2019.09.15"]
[Round "2.3"]
[White "Polak, Tomas"]
[Black "Meszaros, Ludek"]
[Result "1-0"]
[TimeControl "15 min. + 5s"]
[WhiteElo "2515"]
[BlackElo "2059"]

1. d4 {[%clk 00:15:08]} {[%emt 00:00:01]} Nf6 {[%clk 00:15:08]} {[%emt
00:00:02]} 2. c4 {[%clk 00:15:12]} {[%emt 00:00:01]} g6 {[%clk 00:15:11]}
{[%emt 00:00:02]} 3. Nc3 {[%clk 00:15:16]} {[%emt 00:00:01]} Bg7 {[%clk
00:15:15]} 4. e4 {[%clk 00:15:19]} O-O {[%clk 00:15:19]} {[%emt 00:00:04]} 5.
Nf3 {[%clk 00:15:21]} {[%emt 00:00:02]} d6 {[%clk 00:15:23]} 6. Be2 {[%clk
00:15:26]} {[%emt 00:00:02]} Nbd7 {[%clk 00:15:21]} {[%emt 00:00:07]} 7. O-O
{[%clk 00:15:28]} {[%emt 00:00:02]} e5 {[%clk 00:15:25]} {[%emt 00:00:02]} 8.
Re1 {[%clk 00:15:31]} {[%emt 00:00:02]} c6 {[%clk 00:15:23]} {[%emt 00:00:07]}
9. Bf1 {[%clk 00:15:33]} {[%emt 00:00:03]} Qb6 {[%clk 00:15:12]} {[%emt
00:00:16]} 10. h3 {[%clk 00:15:22]} {[%emt 00:00:15]} exd4 {[%clk 00:14:38]}
{[%emt 00:00:39]} 11. Nxd4 {[%clk 00:15:25]} {[%emt 00:00:02]} Re8 {[%clk
00:14:32]} {[%emt 00:00:11]} 12. Nc2 {[%clk 00:15:07]} {[%emt 00:00:22]} Qc7
{[%clk 00:13:43]} {[%emt 00:00:55]} 13. Bf4 {[%clk 00:14:42]} {[%emt 00:00:30]}
Ne5 {[%clk 00:13:42]} {[%emt 00:00:06]} 14. Qd2 {[%clk 00:14:23]} {[%emt
00:00:24]} Be6 {[%clk 00:13:28]} {[%emt 00:00:19]} 15. b3 {[%clk 00:14:09]}
{[%emt 00:00:20]} Rad8 {[%clk 00:13:11]} {[%emt 00:00:22]} 16. Nd4 {[%clk
00:13:43]} {[%emt 00:00:31]} Bc8 {[%clk 00:12:59]} {[%emt 00:00:17]} 17. Rad1
{[%clk 00:13:40]} {[%emt 00:00:08]} a6 {[%clk 00:12:48]} {[%emt 00:00:16]} 18.
Kh1 {[%clk 00:12:44]} {[%emt 00:01:01]} Qe7 {[%clk 00:11:44]} {[%emt 00:01:09]}
19. Bh2 {[%clk 00:12:00]} {[%emt 00:00:48]} Qf8 {[%clk 00:11:28]} {[%emt
00:00:22]} 20. Nc2 {[%clk 00:11:15]} {[%emt 00:00:50]} Bh6 {[%clk 00:11:05]}
{[%emt 00:00:28]} 21. f4 {[%clk 00:11:15]} {[%emt 00:00:05]} Bxh3 {[%clk
00:09:25]} {[%emt 00:01:43]} 22. gxh3 {[%clk 00:10:56]} {[%emt 00:00:25]} Nf3
{[%clk 00:09:26]} {[%emt 00:00:04]} 23. Qf2 {[%clk 00:10:45]} {[%emt 00:00:15]}
Nxe1 {[%clk 00:09:17]} {[%emt 00:00:15]} 24. Rxe1 {[%clk 00:10:49]} {[%emt
00:00:02]} Bg7 {[%clk 00:07:46]} {[%emt 00:01:36]} 25. Qf3 {[%clk 00:10:25]}
{[%emt 00:00:29]} Qe7 {[%clk 00:07:36]} {[%emt 00:00:16]} 26. Bg2 {[%clk
00:10:10]} {[%emt 00:00:20]} Qc7 {[%clk 00:07:34]} {[%emt 00:00:07]} 27. Rd1
{[%clk 00:07:43]} {[%emt 00:02:31]} Qa5 {[%clk 00:07:10]} {[%emt 00:00:29]} 28.
b4 {[%clk 00:07:15]} {[%emt 00:00:33]} Qc7 {[%clk 00:07:00]} {[%emt 00:00:15]}
29. Rd3 {[%clk 00:07:07]} {[%emt 00:00:13]} b5 {[%clk 00:06:00]} {[%emt
00:01:05]} 30. cxb5 {[%clk 00:06:55]} {[%emt 00:00:17]} axb5 {[%clk 00:06:02]}
{[%emt 00:00:03]} 31. Nd4 {[%clk 00:06:32]} {[%emt 00:00:28]} Nd7 {[%clk
00:05:36]} {[%emt 00:00:31]} 32. e5 {[%clk 00:05:46]} {[%emt 00:00:51]} d5
{[%clk 00:05:16]} {[%emt 00:00:26]} 33. h4 {[%clk 00:05:06]} {[%emt 00:00:44]}
Nb6 {[%clk 00:05:05]} {[%emt 00:00:16]} 34. h5 {[%clk 00:05:00]} {[%emt
00:00:11]} Nc4 {[%clk 00:04:59]} {[%emt 00:00:11]} 35. Bh3 {[%clk 00:05:02]}
{[%emt 00:00:03]} Ra8 {[%clk 00:03:48]} {[%emt 00:01:15]} 36. Qg2 {[%clk
00:04:57]} {[%emt 00:00:10]} Ra3 {[%clk 00:03:29]} {[%emt 00:00:25]} 37. Ncxb5
{[%clk 00:04:37]} {[%emt 00:00:25]} cxb5 {[%clk 00:03:18]} {[%emt 00:00:15]} 38.
Nxb5 {[%clk 00:04:40]} {[%emt 00:00:02]} Rxd3 {[%clk 00:02:19]} {[%emt
00:01:04]} 39. Nxc7 {[%clk 00:04:43]} {[%emt 00:00:02]} Rd1+ {[%clk 00:01:45]}
{[%emt 00:00:38]} 40. Bg1 {[%clk 00:04:45]} {[%emt 00:00:03]} Rd8 {[%clk
00:01:20]} {[%emt 00:00:30]} 41. Qf3 {[%clk 00:04:03]} {[%emt 00:00:46]} Rd2
{[%clk 00:01:09]} {[%emt 00:00:17]} 42. hxg6 {[%clk 00:03:54]} {[%emt
00:00:15]} hxg6 {[%clk 00:01:10]} {[%emt 00:00:04]} 43. e6 {[%clk 00:03:44]}
{[%emt 00:00:15]} fxe6 {[%clk 00:00:43]} {[%emt 00:00:32]} 44. Bxe6+ {[%clk
00:03:41]} {[%emt 00:00:08]} Kf8 {[%clk 00:00:43]} {[%emt 00:00:05]} 45. Bxd5
{[%clk 00:03:37]} {[%emt 00:00:09]} 1-0

[Event "MČR v rapid šachu družstev 2019"]
[Site "Teplice, Czech Republic"]
[Date "2019.09.15"]
[Round "2.4"]
[White "Loskot, Petr"]
[Black "Vymazal, Bronislav"]
[Result "0-1"]
[TimeControl "15 min. + 5s"]
[WhiteElo "2065"]
[BlackElo "2347"]

1. e4 {[%clk 00:15:05]} {[%emt 00:00:04]} g6 {[%clk 00:14:52]} {[%emt
00:00:19]} 2. Nc3 {[%clk 00:14:47]} {[%emt 00:00:23]} Bg7 {[%clk 00:14:55]}
{[%emt 00:00:02]} 3. f4 {[%clk 00:14:44]} {[%emt 00:00:09]} c5 {[%clk
00:14:57]} {[%emt 00:00:03]} 4. Nf3 {[%clk 00:14:44]} {[%emt 00:00:05]} Nc6
{[%clk 00:15:01]} {[%emt 00:00:01]} 5. Bc4 {[%clk 00:14:03]} {[%emt 00:00:46]}
e6 {[%clk 00:14:52]} {[%emt 00:00:14]} 6. O-O {[%clk 00:13:34]} {[%emt
00:00:33]} Nge7 {[%clk 00:14:43]} {[%emt 00:00:14]} 7. Qe1 {[%clk 00:12:10]}
{[%emt 00:01:29]} O-O {[%clk 00:14:38]} {[%emt 00:00:10]} 8. Bb3 {[%clk
00:10:54]} {[%emt 00:01:20]} d5 {[%clk 00:12:07]} {[%emt 00:02:37]} 9. d3
{[%clk 00:10:54]} {[%emt 00:00:06]} Na5 {[%clk 00:08:41]} {[%emt 00:03:31]} 10.
exd5 {[%clk 00:07:56]} {[%emt 00:03:03]} Nxb3 {[%clk 00:08:29]} {[%emt
00:00:16]} 11. axb3 {[%clk 00:07:57]} {[%emt 00:00:04]} exd5 {[%clk 00:08:30]}
{[%emt 00:00:04]} 12. Qh4 {[%clk 00:07:52]} {[%emt 00:00:11]} h6 {[%clk
00:05:41]} {[%emt 00:02:55]} 13. Re1 {[%clk 00:07:46]} {[%emt 00:00:10]} Be6
{[%clk 00:05:41]} {[%emt 00:00:04]} 14. g4 {[%clk 00:06:43]} {[%emt 00:01:09]}
Nc6 {[%clk 00:04:58]} {[%emt 00:00:48]} 15. Qg3 {[%clk 00:06:11]} {[%emt
00:00:37]} Nb4 {[%clk 00:03:25]} {[%emt 00:01:38]} 16. Re2 {[%clk 00:06:00]}
{[%emt 00:00:16]} Qc7 {[%clk 00:03:26]} {[%emt 00:00:04]} 17. Qg2 {[%clk
00:05:17]} {[%emt 00:00:48]} Kh7 {[%clk 00:03:13]} {[%emt 00:00:18]} 18. Nh4
{[%clk 00:04:39]} {[%emt 00:00:42]} Qd8 {[%clk 00:02:36]} {[%emt 00:00:42]} 19.
Nxg6 {[%clk 00:04:37]} {[%emt 00:00:07]} Kxg6 {[%emt 00:00:24]} 20. f5+ Kh7
{[%clk 00:02:21]} {[%emt 00:00:01]} 21. fxe6 {[%clk 00:04:45]} {[%emt
00:00:01]} fxe6 {[%clk 00:02:24]} {[%emt 00:00:01]} 22. Rxe6 {[%clk 00:04:41]}
{[%emt 00:00:09]} Qh4 {[%clk 00:01:46]} {[%emt 00:00:44]} 23. Bd2 {[%clk
00:02:46]} {[%emt 00:02:00]} Nxc2 {[%emt 00:00:03]} 24. Rc1 Bd4+ {[%clk
00:01:51]} {[%emt 00:00:02]} 25. Kh1 {[%clk 00:01:22]} {[%emt 00:01:33]} Rf2
{[%clk 00:01:55]} {[%emt 00:00:01]} 26. Rxh6+ {[%clk 00:01:11]} {[%emt
00:00:16]} Qxh6 {[%clk 00:01:58]} {[%emt 00:00:02]} 27. Bxh6 {[%clk 00:01:14]}
{[%emt 00:00:03]} Rxg2 {[%clk 00:01:57]} 28. Kxg2 {[%clk 00:01:18]} Nb4 {[%clk
00:01:48]} {[%emt 00:00:14]} 29. Bg5 {[%clk 00:00:41]} {[%emt 00:00:42]} Nxd3
{[%clk 00:01:43]} {[%emt 00:00:10]} 30. Rc2 {[%emt 00:00:13]} 0-1

[Event "MČR v rapid šachu družstev 2019"]
[Site "Teplice, Czech Republic"]
[Date "2019.09.15"]
[Round "2.5"]
[White "Bernasek, Jan"]
[Black "Taborsky, Rostislav"]
[Result "1-0"]
[TimeControl "15 min. + 5s"]
[WhiteElo "2496"]
[BlackElo "2097"]

1. d4 {[%clk 00:15:08]} {[%emt 00:00:01]} Nf6 {[%clk 00:15:09]} {[%emt
00:00:02]} 2. c4 {[%clk 00:15:12]} e6 {[%clk 00:15:14]} 3. Nc3 {[%clk
00:15:14]} {[%emt 00:00:04]} Bb4 {[%clk 00:15:17]} {[%emt 00:00:01]} 4. e3
{[%clk 00:15:17]} {[%emt 00:00:01]} c5 {[%clk 00:15:11]} {[%emt 00:00:11]} 5.
Nge2 {[%clk 00:15:19]} {[%emt 00:00:03]} cxd4 {[%clk 00:13:44]} {[%emt
00:01:33]} 6. exd4 {[%clk 00:15:22]} {[%emt 00:00:02]} d5 {[%clk 00:13:48]}
{[%emt 00:00:02]} 7. a3 {[%clk 00:15:25]} {[%emt 00:00:01]} Be7 {[%clk
00:13:52]} {[%emt 00:00:02]} 8. cxd5 {[%clk 00:15:12]} {[%emt 00:00:17]} Nxd5
{[%clk 00:13:52]} {[%emt 00:00:05]} 9. Nxd5 {[%clk 00:15:06]} {[%emt 00:00:11]}
exd5 {[%clk 00:13:56]} 10. Nf4 {[%clk 00:15:02]} {[%emt 00:00:10]} Nc6 {[%clk
00:13:47]} {[%emt 00:00:14]} 11. Bd3 {[%clk 00:14:57]} {[%emt 00:00:10]} O-O
{[%clk 00:12:03]} {[%emt 00:01:50]} 12. O-O {[%clk 00:14:56]} {[%emt 00:00:05]}
Bf6 {[%clk 00:11:47]} {[%emt 00:00:21]} 13. Be3 {[%clk 00:14:51]} {[%emt
00:00:10]} g6 {[%clk 00:09:10]} {[%emt 00:02:42]} 14. Rc1 {[%clk 00:14:17]}
{[%emt 00:00:39]} Re8 {[%clk 00:08:21]} {[%emt 00:00:55]} 15. Bb1 {[%clk
00:13:45]} {[%emt 00:00:36]} Ne7 {[%clk 00:07:56]} {[%emt 00:00:30]} 16. Qf3
{[%clk 00:13:16]} {[%emt 00:00:33]} Bg7 {[%clk 00:05:10]} {[%emt 00:02:51]} 17.
Rc5 {[%clk 00:12:35]} {[%emt 00:00:47]} b6 {[%clk 00:04:45]} {[%emt 00:00:30]}
18. Rc3 {[%clk 00:12:38]} {[%emt 00:00:01]} Qd6 {[%clk 00:04:26]} {[%emt
00:00:25]} 19. Rfc1 {[%clk 00:12:39]} {[%emt 00:00:04]} h5 {[%clk 00:02:58]}
{[%emt 00:01:33]} 20. h3 {[%clk 00:12:34]} {[%emt 00:00:10]} Bd7 {[%clk
00:02:17]} {[%emt 00:00:46]} 21. Qg3 {[%clk 00:11:44]} {[%emt 00:00:55]} Qf6
{[%clk 00:01:28]} {[%emt 00:00:54]} 22. Rc7 {[%clk 00:11:46]} {[%emt 00:00:02]}
Bf5 {[%clk 00:01:24]} {[%emt 00:00:10]} 23. Ba2 {[%clk 00:11:40]} {[%emt
00:00:10]} Be4 {[%clk 00:01:14]} {[%emt 00:00:16]} 24. Qh2 {[%clk 00:09:09]}
{[%emt 00:02:36]} Nf5 {[%clk 00:00:47]} {[%emt 00:00:32]} 25. Nxd5 {[%clk
00:09:01]} {[%emt 00:00:13]} Bxd5 {[%clk 00:00:15]} {[%emt 00:00:38]} 26. Bxd5
{[%clk 00:09:04]} {[%emt 00:00:02]} Rf8 {[%emt 00:00:15]} 1-0

[Event "MČR v rapid šachu družstev 2019"]
[Site "Teplice, Czech Republic"]
[Date "2019.09.15"]
[Round "2.6"]
[White "Burdik, Lubomir"]
[Black "Cernousek, Lukas"]
[Result "0-1"]
[TimeControl "15 min. + 5s"]
[WhiteElo "2078"]
[BlackElo "2478"]

1. d4 {[%clk 00:15:06]} {[%emt 00:00:03]} Nf6 {[%clk 00:15:08]} {[%emt
00:00:03]} 2. c4 {[%clk 00:15:08]} {[%emt 00:00:03]} c5 {[%clk 00:15:12]} 3. e3
{[%clk 00:15:00]} {[%emt 00:00:14]} g6 {[%clk 00:15:00]} {[%emt 00:00:17]} 4.
Nc3 {[%clk 00:15:00]} {[%emt 00:00:04]} Bg7 {[%clk 00:15:00]} {[%emt 00:00:05]}
5. Nf3 {[%clk 00:15:03]} {[%emt 00:00:02]} O-O {[%clk 00:14:57]} {[%emt
00:00:09]} 6. Be2 {[%clk 00:15:06]} {[%emt 00:00:02]} d5 {[%clk 00:14:29]}
{[%emt 00:00:33]} 7. dxc5 {[%clk 00:13:32]} {[%emt 00:01:39]} dxc4 {[%clk
00:14:32]} {[%emt 00:00:03]} 8. O-O {[%clk 00:13:23]} {[%emt 00:00:14]} Qa5
{[%clk 00:14:20]} {[%emt 00:00:16]} 9. Qa4 {[%clk 00:12:03]} {[%emt 00:01:26]}
Qxc5 {[%clk 00:12:57]} {[%emt 00:01:28]} 10. Qxc4 {[%clk 00:11:59]} {[%emt
00:00:08]} Na6 {[%clk 00:13:01]} {[%emt 00:00:01]} 11. e4 {[%clk 00:09:26]}
{[%emt 00:02:39]} Be6 {[%clk 00:12:59]} {[%emt 00:00:06]} 12. Qa4 {[%clk
00:09:29]} {[%emt 00:00:01]} Qb4 {[%clk 00:12:01]} {[%emt 00:01:04]} 13. Qxb4
{[%clk 00:05:20]} {[%emt 00:04:14]} Nxb4 {[%clk 00:12:05]} 14. Nd4 {[%clk
00:05:24]} {[%emt 00:00:02]} Bg4 {[%clk 00:08:30]} {[%emt 00:03:40]} 15. Bxg4
{[%clk 00:01:31]} {[%emt 00:03:58]} Nxg4 {[%clk 00:08:34]} {[%emt 00:00:01]} 16.
Ndb5 {[%clk 00:01:31]} {[%emt 00:00:05]} Rfd8 {[%clk 00:02:27]} {[%emt
00:06:11]} 17. Bg5 {[%clk 00:01:22]} {[%emt 00:00:14]} Kf8 {[%clk 00:01:44]}
{[%emt 00:00:49]} 18. h3 {[%clk 00:00:40]} {[%emt 00:00:47]} Ne5 {[%clk
00:01:47]} {[%emt 00:00:01]} 19. Rfd1 {[%clk 00:00:39]} {[%emt 00:00:06]} Ned3
{[%clk 00:00:52]} {[%emt 00:01:00]} 20. a3 {[%clk 00:00:26]} {[%emt 00:00:18]}
Nc6 {[%clk 00:00:47]} {[%emt 00:00:11]} 21. Rab1 {[%clk 00:00:20]} {[%emt
00:00:11]} Rac8 {[%clk 00:00:44]} {[%emt 00:00:08]} 22. Nd5 {[%clk 00:00:11]}
{[%emt 00:00:14]} Nxb2 {[%clk 00:00:46]} {[%emt 00:00:03]} 23. Rdc1 {[%clk
00:00:08]} {[%emt 00:00:08]} Ke8 {[%clk 00:00:25]} {[%emt 00:00:26]} 24. Nbc7+
{[%clk 00:00:00]} {[%emt 00:00:09]} Kd7 {[%clk 00:00:25]} {[%emt 00:00:01]} 0-1

[Event "MČR v rapid šachu družstev 2019"]
[Site "Teplice, Czech Republic"]
[Date "2019.09.15"]
[Round "2.7"]
[White "Vrbata, Zbynek"]
[Black "Simecek, Alexej"]
[Result "1-0"]
[TimeControl "15 min. + 5s"]
[WhiteElo "2376"]
[BlackElo "1934"]

1. d4 {[%clk 00:15:08]} Nf6 {[%clk 00:15:09]} {[%emt 00:00:02]} 2. c4 {[%clk
00:15:11]} {[%emt 00:00:02]} e6 {[%clk 00:15:11]} {[%emt 00:00:03]} 3. Nc3
{[%clk 00:15:12]} {[%emt 00:00:03]} Bb4 {[%clk 00:15:14]} {[%emt 00:00:03]} 4.
Nf3 {[%clk 00:15:14]} {[%emt 00:00:03]} O-O {[%clk 00:15:16]} {[%emt 00:00:03]}
5. g3 {[%clk 00:15:16]} {[%emt 00:00:04]} d5 {[%clk 00:15:08]} {[%emt
00:00:12]} 6. Bg2 {[%clk 00:15:10]} {[%emt 00:00:11]} b6 {[%clk 00:14:45]}
{[%emt 00:00:28]} 7. O-O {[%clk 00:15:02]} {[%emt 00:00:13]} Na6 {[%clk
00:14:35]} {[%emt 00:00:15]} 8. Ne5 {[%clk 00:14:09]} {[%emt 00:00:58]} Bb7
{[%clk 00:14:33]} {[%emt 00:00:07]} 9. Bf4 {[%clk 00:13:22]} {[%emt 00:00:51]}
Bxc3 {[%clk 00:13:59]} {[%emt 00:00:40]} 10. bxc3 {[%clk 00:13:25]} {[%emt
00:00:02]} c5 {[%clk 00:13:59]} {[%emt 00:00:05]} 11. a4 {[%clk 00:10:15]}
{[%emt 00:03:15]} Rc8 {[%clk 00:13:50]} {[%emt 00:00:13]} 12. a5 {[%clk
00:10:02]} {[%emt 00:00:18]} Qe7 {[%clk 00:12:40]} {[%emt 00:01:15]} 13. Qa4
{[%clk 00:09:44]} {[%emt 00:00:23]} Ne4 {[%clk 00:12:01]} {[%emt 00:00:45]} 14.
axb6 {[%clk 00:09:08]} {[%emt 00:00:42]} axb6 {[%clk 00:11:57]} {[%emt
00:00:08]} 15. Bxe4 {[%clk 00:07:37]} {[%emt 00:01:36]} dxe4 {[%clk 00:12:00]}
{[%emt 00:00:02]} 16. Nd7 {[%clk 00:06:40]} {[%emt 00:01:02]} Rc6 {[%clk
00:10:47]} {[%emt 00:01:18]} 17. Nxf8 {[%clk 00:06:40]} {[%emt 00:00:05]} Kxf8
{[%clk 00:10:46]} {[%emt 00:00:07]} 18. d5 {[%clk 00:06:14]} {[%emt 00:00:30]}
Rc8 {[%clk 00:10:35]} {[%emt 00:00:16]} 19. d6 {[%clk 00:06:05]} {[%emt
00:00:14]} Qd8 {[%clk 00:10:31]} {[%emt 00:00:09]} 20. Rfd1 {[%clk 00:05:22]}
{[%emt 00:00:47]} Nb8 {[%clk 00:10:31]} {[%emt 00:00:05]} 21. d7 {[%clk
00:05:20]} {[%emt 00:00:08]} Rc6 {[%clk 00:10:20]} {[%emt 00:00:15]} 22. Bxb8
{[%clk 00:05:22]} {[%emt 00:00:03]} 1-0